bitfinex-derivatives/quotes_ETHF0:USTF0_20250919
["timestamp","ask_amount","ask_price","bid_price","bid_amount"]
[1758277543753,0.5415,4534.0,4533.9,0.39679]
[1758277543949,0.8367,4534.0,4533.9,0.39679]
[1758277544149,0.8367,4534.0,4533.9,0.59649]
[1758277544353,0.8367,4534.0,4533.9,0.89429]
[1758277545461,0.8367,4534.0,4533.5,0.2978]
[1758277545660,0.8367,4533.5,4533.4,0.77294]
[1758277545957,0.8367,4533.5,4533.4,0.89434]
[1758277546561,0.8367,4534.0,4533.9,0.7096]
[1758277548865,0.8367,4534.0,4533.9,1.10639]
[1758277549464,0.8367,4534.0,4533.9,0.7096]
[1758277551863,0.7114,4534.0,4533.9,1.10639]
[1758277552066,0.9334,4534.0,4533.9,1.10639]
[1758277553870,0.9334,4534.0,4533.9,0.7096]
[1758277554069,1.0587,4534.0,4533.9,0.7096]
[1758277554974,1.0587,4534.0,4533.6,0.2978]
[1758277555173,0.4162,4533.7,4533.6,0.89432]
[1758277555473,0.7114,4533.7,4533.6,1.10642]
[1758277555866,0.5038,4533.7,4533.6,1.10642]
[1758277556269,0.5141,4533.9,4533.8,0.3968]
[1758277556467,0.5141,4533.9,4533.8,1.1345]
[1758277557372,0.45527906,4533.9,4533.8,1.1345]
[1758277557678,0.222,4534.0,4533.9,0.39679]
[1758277557862,0.222,4534.0,4533.9,0.81319]
[1758277558066,0.222,4534.0,4533.9,1.13449]
[1758277558663,36.2909,4534.6,4534.5,1.09964]
[1758277558870,36.74633565,4534.6,4534.5,1.09964]
[1758277559067,36.94043565,4534.6,4534.5,0.4045]
[1758277559266,36.61953565,4534.6,4534.3,0.2984]
[1758277559469,0.728,4534.1,4534.0,0.89059]
[1758277559666,1.18343565,4534.1,4534.0,0.89059]
[1758277559869,1.18343565,4534.1,4534.0,0.4938]
[1758277560069,1.18343565,4534.1,4534.0,0.89059]
[1758277560466,1.18343565,4534.1,4534.0,0.59219]
[1758277562178,1.18343565,4534.1,4534.0,1.09969]
[1758277564880,1.17791976,4534.1,4534.0,1.09969]
[1758277565276,1.69359087,4534.1,4534.0,1.09969]
[1758277572685,1.69366534,4534.1,4534.0,1.09969]
[1758277573987,1.69366534,4534.1,4534.0,0.80129]
[1758277574188,1.69366534,4534.1,4534.0,0.4045]
[1758277574480,0.728,4533.7,4533.6,0.59522]
[1758277574683,0.95,4533.7,4533.6,0.79062]
[1758277574885,0.95,4533.7,4533.6,0.59222]
[1758277575186,0.95,4533.7,4533.6,1.09972]
[1758277575378,1.46563718,4533.7,4533.6,1.09972]
[1758277575779,0.95,4533.7,4533.6,1.09972]
[1758277576379,1.4656372,4533.7,4533.6,0.80132]
[1758277577082,1.4656372,4533.7,4533.6,1.09972]
[1758277578188,1.2436372,4533.7,4533.6,1.09972]
[1758277578389,1.4656372,4533.7,4533.6,1.09972]
[1758277583790,1.2436372,4533.7,4533.6,1.09972]
[1758277583993,1.4656372,4533.7,4533.6,1.09972]
[1758277584386,1.6938069,4533.7,4533.6,1.09972]
[1758277585286,1.1781697,4533.7,4533.6,1.09972]
[1758277585986,0.95,4533.7,4533.6,1.09972]
[1758277587293,0.95,4533.7,4533.6,0.39682]
[1758277587494,0.728,4533.4,4533.3,0.1984]
[1758277587794,1.47235266,4533.4,4533.3,0.022]
[1758277587983,1.47235266,4533.4,4533.0,0.39687]
[1758277588187,0.7216,4533.1,4533.0,0.39687]
[1758277588383,1.68795266,4533.1,4533.0,0.39687]
[1758277588689,1.68795266,4533.1,4533.0,0.91927]
[1758277588894,1.17184182,4533.1,4533.0,1.12207]
[1758277589888,0.94984182,4533.1,4533.0,1.12207]
[1758277590790,0.94984182,4533.1,4533.0,0.60717]
[1758277591896,0.94984182,4533.1,4533.0,0.39687]
[1758277592598,0.94984182,4533.1,4532.8,0.59529]
[1758277592599,0.7132,4532.9,4532.8,0.59529]
[1758277592796,0.94144182,4532.9,4532.8,0.59529]
[1758277593698,0.94144182,4532.9,4532.8,0.57329]
[1758277593996,0.94144182,4532.9,4532.8,1.29849]
[1758277594498,0.94144182,4532.9,4532.8,1.12209]
[1758277595294,0.94144182,4532.9,4532.8,0.2103]
[1758277595990,0.94144182,4532.9,4532.5,0.3121]
[1758277596190,0.8364,4532.5,4532.4,0.39692]
[1758277596395,0.8364,4532.5,4532.1,0.3121]
[1758277596396,1.06464182,4532.5,4532.2,0.39694]
[1758277596700,0.7132,4532.3,4532.2,0.60724]
[1758277596999,0.7132,4532.3,4532.2,0.94134]
[1758277597198,0.7132,4532.3,4532.2,0.62924]
[1758277597402,0.96562714,4532.3,4532.2,0.62924]
[1758277600002,0.96549166,4532.3,4532.2,0.62924]
[1758277600301,0.7132,4532.3,4532.2,1.14414]
[1758277600601,0.7132,4532.3,4532.2,1.12214]
[1758277600802,0.5126,4532.3,4532.2,1.12214]
[1758277602492,0.7132,4532.3,4532.2,1.12214]
[1758277605308,0.6207,4532.8,4532.7,0.3969]
[1758277605514,0.87285709,4532.8,4532.7,1.1221]
[1758277605914,1.18735709,4532.8,4532.7,1.1221]
[1758277608218,0.25215709,4532.8,4532.7,1.1221]
[1758277608622,0.3145,4533.7,4533.5,1.24973]
[1758277608917,35.9441,4533.6,4533.5,1.24973]
[1758277609115,36.2586,4533.6,4533.5,1.12203]
[1758277611118,36.4592,4533.6,4533.5,1.12203]
[1758277612122,0.834,4534.0,4533.9,1.12199]
[1758277612309,0.5126,4534.0,4533.9,1.12199]
[1758277612515,0.8364,4534.5,4534.4,0.91915]
[1758277612818,1.0584,4534.5,4534.4,1.12195]
[1758277615417,1.57233529,4534.5,4534.4,1.12195]
[1758277620628,1.82105796,4534.5,4534.4,1.12195]
[1758277623228,1.30712267,4534.5,4534.4,1.12195]
[1758277623731,1.82040695,4534.5,4534.4,1.12195]
[1758277624232,1.30712267,4534.5,4534.4,1.12195]
[1758277624628,0.24872267,4534.5,4534.4,1.12195]
[1758277624831,0.2933,4534.8,4534.7,0.79943]
[1758277625029,0.97343284,4534.8,4534.7,1.09553]
[1758277625226,0.7257,4534.8,4534.7,1.09553]
[1758277625428,0.922,4534.8,4534.7,1.09553]
[1758277625829,1.16966764,4534.8,4534.7,1.09553]
[1758277626234,1.16966764,4534.8,4534.7,0.79943]
[1758277627834,1.16966764,4534.8,4534.1,0.99194]
[1758277628035,0.5037,4534.3,4534.2,1.31609999]
[1758277628631,0.5037,4534.3,4534.2,1.09557]
[1758277630335,0.7,4534.3,4534.2,1.09557]
[1758277631641,0.922,4534.3,4534.0,0.022]
[1758277631838,0.2477411,4534.2,4534.0,0.022]
[1758277632041,0.7,4534.1,4534.0,0.022]
[1758277632538,0.4067,4533.9,4533.8,0.3968]
[1758277632734,0.7,4533.9,4533.8,0.3968]
[1758277633040,0.7,4533.9,4533.8,0.5921]
[1758277634444,0.7,4533.9,4533.8,0.3968]
[1758277634645,0.2104,4533.3,4533.2,1.09566]
[1758277634845,0.5037,4533.3,4533.2,1.09566]
[1758277637945,0.7,4533.3,4533.2,1.09566]
[1758277638743,0.94854036,4533.3,4533.2,1.09566]
[1758277639346,0.94854036,4533.3,4533.2,0.79956]
[1758277640050,0.94854036,4533.3,4533.2,1.09566]
[1758277643958,0.54184036,4533.3,4533.2,1.09566]
[1758277644147,0.24854036,4533.3,4533.2,1.09566]
[1758277653260,0.5219,4533.9,4533.8,0.8028]
[1758277653453,0.77019651,4533.9,4533.8,1.1204]
[1758277654353,0.98159651,4533.9,4533.8,1.1204]
[1758277654555,0.98159651,4533.9,4533.5,0.3176]
[1758277654860,0.98159651,4533.8,4533.7,0.6099]
[1758277655461,1.49681526,4533.8,4533.7,0.6099]
[1758277656359,1.49681526,4533.8,4533.7,0.9275]
[1758277656654,1.49681526,4533.8,4533.7,0.6099]
[1758277656860,1.49681526,4533.8,4533.7,0.3968]
[1758277657458,1.49681526,4533.8,4533.7,1.1204]
[1758277657860,1.28541526,4533.8,4533.7,1.1204]
[1758277658760,1.49681526,4533.8,4533.7,1.1204]
[1758277659054,1.28541526,4533.8,4533.7,1.1204]
[1758277661467,1.28581647,4533.8,4533.7,1.1204]
[1758277663265,1.49721647,4533.8,4533.7,1.1204]
[1758277664266,1.49721647,4533.8,4533.7,0.3968]
[1758277684873,0.98199772,4533.8,4533.7,0.3968]
[1758277685076,1.49795,4533.8,4533.7,0.3968]
[1758277686477,1.49795,4533.8,4533.7,0.8942]
[1758277687067,1.49795,4533.8,4533.7,0.5906]
[1758277688478,0.98199772,4533.8,4533.7,0.5906]
[1758277688777,1.49811402,4533.8,4533.7,0.5906]
[1758277689975,1.49811402,4533.8,4533.7,1.1035]
[1758277691477,1.2494163,4533.8,4533.7,1.1035]
[1758277691781,1.49857079,4533.8,4533.7,1.1035]
[1758277699385,0.75531719,4533.8,4533.7,5.1035]
[1758277699585,0.4067,4535.2,4535.1,0.70028]
[1758277699782,0.92293776,4535.2,4535.1,0.70028]
[1758277701383,0.92293776,4535.2,4535.1,0.89408]
[1758277701590,1.22613776,4535.2,4535.1,0.89408]
[1758277702192,0.92293776,4535.2,4535.1,1.10338]
[1758277702392,0.72443776,4535.2,4535.1,1.10338]
[1758277702788,1.22613776,4535.2,4535.1,0.39668]
[1758277703184,0.7099,4535.2,4535.1,0.39668]
[1758277703391,35.739,4535.4,4535.2,1.10338]
[1758277703392,0.3032,4535.3,4535.2,1.10338]
[1758277703595,0.51264838,4535.3,4535.2,1.10338]
[1758277703795,0.2082,4535.3,4535.2,1.10338]
[1758277705094,0.4067,4535.3,4535.2,1.10338]
[1758277705297,0.91889554,4535.3,4535.2,1.10338]
[1758277705596,1.22209554,4535.3,4535.2,0.89408]
[1758277705995,1.44409554,4535.3,4535.2,0.89408]
[1758277709697,1.44409554,4535.3,4535.2,1.10338]
[1758277710897,1.14089554,4535.3,4535.2,1.10338]
[1758277711100,0.94239554,4535.3,4535.2,1.10338]
[1758277711301,0.51219554,4535.3,4535.2,1.10338]
[1758277711501,0.1217,4536.5,4535.8,1.10873]
[1758277711502,0.4007,4535.9,4535.8,1.10873]
[1758277711702,0.84749497,4535.9,4535.8,1.10873]
[1758277711897,1.13717357,4535.9,4535.8,1.10873]
[1758277712199,1.35917357,4535.9,4535.8,1.10873]
[1758277712600,1.65847357,4535.9,4535.8,1.10873]
[1758277715491,1.14679497,4535.9,4535.8,1.10873]
[1758277715694,1.14679497,4535.9,4535.8,0.7121]
[1758277715895,0.4007,4535.6,4535.5,0.39665]
[1758277716201,0.7,4535.6,4535.5,0.71315]
[1758277718303,0.7,4535.6,4535.5,0.3165]
[1758277718498,0.7,4535.6,4535.1,0.3165]
[1758277718699,0.7,4535.5,4535.4,0.71316]
[1758277720300,0.4969,4535.5,4535.0,0.7132]
[1758277720600,0.7,4535.0,4534.9,0.3942]
[1758277720804,1.04628019,4535.0,4534.9,0.1984]
[1758277721001,1.55794369,4535.0,4534.7,0.39672]
[1758277721202,1.03574369,4534.9,4534.8,0.3165]
[1758277721402,1.43644369,4534.9,4534.8,0.3165]
[1758277721903,0.92478019,4534.9,4534.8,0.3165]
[1758277722100,1.43553593,4534.9,4534.8,0.3165]
[1758277723306,1.43553593,4534.9,4534.8,0.5123]
[1758277724606,1.43553593,4534.9,4534.8,0.3165]
[1758277726204,1.43553593,4534.9,4534.8,0.71322]
[1758277726702,1.43553593,4534.9,4534.8,0.90902]
[1758277730710,1.43593948,4534.9,4534.8,0.90902]
[1758277731210,1.43593948,4534.9,4534.8,0.5123]
[1758277731412,1.43593948,4534.9,4534.8,0.90902]
[1758277733113,1.43593948,4534.9,4534.8,0.5123]
[1758277733614,1.43593948,4534.9,4534.8,0.3165]
[1758277734112,1.43593948,4534.9,4534.8,0.71322]
[1758277734614,1.43593948,4534.9,4534.8,0.90902]
[1758277743922,1.43593948,4534.9,4534.8,0.5123]
[1758277744819,1.43593948,4534.9,4534.8,0.3165]
[1758277745021,0.7186,4534.7,4534.6,0.1984]
[1758277745218,1.45453948,4534.7,4534.6,0.1984]
[1758277745417,1.45453948,4534.7,4534.2,0.2998]
[1758277745723,0.7186,4534.3,4534.2,0.88967]
[1758277746021,1.45453948,4534.3,4534.2,0.88967]
[1758277749722,1.45453948,4534.3,4534.2,1.08817]
[1758277752827,1.14803948,4534.3,4534.2,1.08817]
[1758277753025,1.14819667,4534.3,4534.2,1.08817]
[1758277753427,1.45469667,4534.3,4534.2,1.08817]
[1758277753622,1.67523667,4534.3,4534.0,0.1984]
[1758277753828,0.1272,4534.5,4532.3,2.75272685]
[1758277753829,0.7186,4532.4,4532.3,0.3916]
[1758277754020,0.9440055,4532.4,4532.3,0.1931]
[1758277754225,0.7186,4531.8,4531.7,0.3916]
[1758277754626,1.47875388,4531.8,4531.7,0.1931]
[1758277755125,0.96494884,4531.8,4531.7,0.1931]
[1758277755616,0.7186,4531.8,4531.7,0.1931]
[1758277755820,1.49884406,4531.8,4531.7,0.1931]
[1758277756219,0.5393,4531.5,4531.0,0.51924]
[1758277756424,0.7186,4531.2,4531.1,0.6914]
[1758277757829,0.7186,4531.2,4531.1,0.1931]
[1758277758433,0.7186,4531.2,4530.9,0.0503]
[1758277758623,0.8458,4531.0,4530.9,0.5432]
[1758277759029,0.8458,4531.0,4530.9,0.94026]
[1758277759231,0.7186,4531.0,4530.9,0.7417]
[1758277759431,0.7186,4531.0,4530.9,0.7134]
[1758277759625,0.7186,4531.0,4530.9,0.6914]
[1758277762938,0.8458,4531.0,4530.9,0.4929]
[1758277763239,0.8458,4531.0,4530.9,0.1931]
[1758277765236,0.2031,4530.6,4530.5,0.88999]
[1758277765536,0.7186,4530.6,4530.5,0.4929]
[1758277766541,0.7186,4530.6,4530.5,0.1931]
[1758277767136,0.7186,4530.6,4530.5,0.4929]
[1758277767539,0.7186,4530.6,4530.5,0.6914]
[1758277768442,0.7186,4530.6,4530.5,1.08849]
[1758277779243,0.96086246,4530.6,4530.5,1.08849]
[1758277781149,1.51046614,4530.6,4530.5,1.08849]
[1758277781454,0.79186614,4530.6,4530.5,1.20599]
[1758277781845,1.28776614,4530.6,4530.5,1.20599]
[1758277783647,0.79186614,4530.6,4530.5,1.20599]
[1758277784057,1.28776614,4530.6,4530.5,1.20599]
[1758277786250,1.49026614,4530.6,4530.0,0.1222]
[1758277786459,0.6984,4529.9,4529.7,0.022]
[1758277786647,1.49026614,4529.8,4529.7,0.022]
[1758277786953,0.6984,4529.7,4529.6,0.92297]
[1758277787147,1.49026614,4529.7,4529.6,0.92297]
[1758277787547,1.49026614,4529.7,4529.6,0.5258]
[1758277787854,1.49026614,4529.7,4529.6,0.72]
[1758277792252,1.49026614,4529.7,4529.3,0.3183]
[1758277792553,0.6984,4529.4,4529.1,0.3183]
[1758277792755,0.6984,4529.2,4529.1,0.3183]
[1758277793060,1.49026614,4529.2,4529.1,0.3183]
[1758277793243,1.49026614,4529.2,4529.1,0.71552]
[1758277793448,1.49026614,4529.2,4529.1,0.3183]
[1758277793856,1.49026614,4529.2,4529.1,0.71552]
[1758277794657,1.49026614,4529.2,4528.8,0.39724]
[1758277794857,0.3966,4528.9,4528.8,0.60474]
[1758277795058,1.49026614,4528.9,4528.8,0.92304]
[1758277797260,0.8406,4528.5,4528.4,0.5014]
[1758277797558,1.63246614,4528.5,4528.4,0.5014]
[1758277798458,1.63246614,4528.5,4528.4,0.5092]
[1758277798655,1.63246614,4528.5,4528.4,1.11348]
[1758277799352,1.51476614,4528.5,4528.4,1.11348]
[1758277800356,1.51476614,4528.5,4528.4,0.7162]
[1758277800862,1.51476614,4528.5,4528.4,1.11348]
[1758277801161,1.51476614,4528.5,4528.4,0.7162]
[1758277801661,1.51476614,4528.5,4528.4,1.11348]
[1758277802956,1.31286614,4528.5,4528.4,1.11348]
[1758277803154,0.54960368,4528.5,4528.4,5.33431]
[1758277803355,0.9422,4529.1,4529.0,0.7162]
[1758277803557,1.72709336,4529.1,4529.0,0.7162]
[1758277804266,1.72709336,4529.1,4529.0,1.11342]
[1758277804468,1.72709336,4529.1,4529.0,1.23742]
[1758277805762,1.72709336,4529.1,4529.0,0.7162]
[1758277805961,1.72709336,4529.1,4529.0,0.5092]
[1758277806261,0.7192,4528.8,4528.7,0.90645]
[1758277806464,1.5040905,4528.8,4528.7,0.90645]
[1758277806765,1.5040905,4528.8,4528.7,0.59505]
[1758277806957,1.5040905,4528.8,4528.7,0.90645]
[1758277807162,1.5040905,4528.8,4528.7,0.1978]
[1758277807469,0.837,4528.5,4528.4,0.90647]
[1758277807956,0.837,4528.5,4528.4,1.11347]
[1758277808361,0.7192,4528.5,4528.4,1.11347]
[1758277811660,0.7192,4528.5,4528.4,0.7162]
[1758277811865,0.837,4528.5,4528.4,0.7162]
[1758277812956,0.837,4528.5,4528.4,0.5092]
[1758277813158,0.837,4528.5,4528.0,0.39731]
[1758277813362,0.1178,4528.0,4527.9,0.0525]
[1758277813664,0.837,4528.0,4527.9,0.90652]
[1758277814064,0.837,4528.0,4527.9,1.11352]
[1758277814263,0.7192,4528.0,4527.9,1.11352]
[1758277814567,0.5172,4528.0,4527.9,1.11352]
[1758277814869,0.7192,4528.4,4528.3,0.90648]
[1758277815070,1.27072498,4528.4,4528.3,0.90648]
[1758277815769,1.27072498,4528.4,4528.3,1.11348]
[1758277816270,1.50564811,4528.4,4528.3,1.11348]
[1758277817071,1.5056476,4528.4,4528.3,1.11348]
[1758277817460,0.3137,4528.7,4528.6,0.39726]
[1758277817663,1.30396984,4528.7,4528.6,0.7162]
[1758277817867,1.50596984,4528.7,4528.6,1.11346]
[1758277818367,1.50596986,4528.7,4528.6,1.11346]
[1758277818569,1.50596986,4528.7,4528.4,0.39727]
[1758277818869,0.837,4528.5,4528.4,0.90648]
[1758277819064,1.62376986,4528.5,4528.4,0.90648]
[1758277823063,1.62376986,4528.5,4528.1,0.3114]
[1758277823269,0.7192,4528.2,4528.1,0.5092]
[1758277823476,1.50596986,4528.2,4528.1,0.1978]
[1758277823973,0.7192,4528.1,4528.0,0.39731]
[1758277824271,1.50596986,4528.1,4528.0,0.90651]
[1758277826075,1.50596986,4528.1,4528.0,1.11351]
[1758277826977,1.50596986,4528.1,4528.0,1.23751]
[1758277827879,1.50596986,4528.1,4528.0,1.11351]
[1758277829278,1.50596986,4528.1,4528.0,0.5092]
[1758277829679,1.50596986,4528.1,4528.0,0.90651]
[1758277833982,1.50596986,4528.1,4528.0,0.5092]
[1758277834280,0.7209,4527.8,4527.7,0.0547]
[1758277834477,1.50766986,4527.8,4527.7,0.0547]
[1758277834675,1.19076986,4527.8,4527.7,0.39734]
[1758277834874,1.50766986,4527.8,4527.7,0.39734]
[1758277835180,1.50766986,4527.8,4527.7,0.69894]
[1758277835387,1.50766986,4527.8,4527.7,0.89454]
[1758277835685,1.50766986,4527.8,4527.7,0.69894]
[1758277835890,1.50766986,4527.8,4526.5,0.124]
[1758277835891,0.5196,4527.2,4527.1,1.09629]
[1758277836188,0.1238,4528.0,4527.6,0.59295]
[1758277836189,0.7209,4527.7,4527.6,0.59295]
[1758277836487,1.50740959,4527.7,4527.6,0.59295]
[1758277836786,1.50740959,4527.7,4527.6,0.89455]
[1758277837889,1.50740959,4527.7,4527.6,0.4972]
[1758277838183,1.50740959,4527.7,4527.6,0.89455]
[1758277840388,1.50740959,4527.7,4527.6,1.09625]
[1758277840586,0.98920959,4527.7,4527.6,1.09625]
[1758277840786,1.30610959,4527.7,4527.6,1.09625]
[1758277841188,1.50740959,4527.7,4527.6,1.09625]
[1758277843598,1.30610959,4527.7,4527.6,1.09625]
[1758277843791,0.98920959,4527.7,4527.6,1.09625]
[1758277843990,1.50740959,4527.7,4527.6,1.09625]
[1758277844596,0.98920959,4527.7,4527.6,1.09625]
[1758277845090,0.3169,4528.4,4528.3,0.39729]
[1758277845295,0.2339542,4528.4,4528.3,1.09619]
[1758277845994,0.7535542,4528.4,4528.3,1.09619]
[1758277849194,0.2339542,4528.4,4528.3,1.09619]
[1758277849696,0.3169,4528.9,4528.7,0.39725]
[1758277849901,0.75356657,4528.8,4528.7,1.09615]
[1758277850399,0.95486657,4528.8,4528.7,0.6989]
[1758277850602,0.95486657,4528.8,4528.5,0.3016]
[1758277850802,0.7209,4528.6,4528.5,0.4972]
[1758277851002,0.95486657,4528.6,4528.5,0.4972]
[1758277851194,0.1238,4528.5,4528.2,0.3016]
[1758277851394,0.7209,4528.3,4528.2,0.89449]
[1758277851605,0.95486657,4528.3,4528.2,0.89449]
[1758277853604,0.95486657,4528.3,4528.2,1.09619]
[1758277854399,0.95482363,4528.3,4528.2,1.09619]
[1758277854800,0.95482363,4528.3,4528.0,0.3236]
[1758277855001,0.7209,4528.1,4528.0,0.022]
[1758277855306,0.95481194,4528.1,4528.0,0.022]
[1758277856501,0.95481194,4528.1,4527.5,0.39735]
[1758277856702,0.6994,4527.6,4527.5,0.89525]
[1758277856898,0.93331194,4527.6,4527.5,0.89525]
[1758277857100,1.48269924,4527.6,4527.5,1.10595]
[1758277857605,0.78329924,4527.6,4527.5,1.22755]
[1758277857793,0.5493873,4527.6,4527.5,1.22755]
[1758277859304,0.5493873,4527.6,4527.5,1.22215]
[1758277859507,1.0772873,4527.6,4527.5,1.22215]
[1758277859803,1.52085878,4527.6,4527.5,1.22215]
[1758277860594,0.99235878,4527.6,4527.5,1.22215]
[1758277860795,0.7584873,4527.6,4527.5,1.22215]
[1758277861507,0.5493873,4527.6,4527.5,1.22215]
[1758277861704,0.2091,4528.2,4528.1,0.3973]
[1758277862007,1.28689162,4528.2,4528.1,0.8022]
[1758277862203,1.52044628,4528.2,4528.1,0.8022]
[1758277862505,1.52044628,4528.2,4528.1,1.0936]
[1758277862709,0.78284628,4528.2,4528.1,0.3973]
[1758277862906,1.52044628,4528.2,4528.1,0.4945]
[1758277863204,1.52044628,4528.2,4527.6,0.39735]
[1758277863205,0.1193,4528.0,4527.6,0.39735]
[1758277863409,0.7376,4527.7,4527.6,0.89185]
[1758277863612,1.52044628,4527.7,4527.6,0.60045]
[1758277863909,1.52044628,4527.7,4527.5,0.39736]
[1758277864097,1.52044628,4527.6,4527.5,0.60046]
[1758277864303,1.52044628,4527.6,4527.5,0.89186]
[1758277866206,1.28689162,4527.6,4527.5,0.89186]
[1758277866711,1.28689162,4527.6,4527.5,0.4945]
[1758277867209,1.52047039,4527.6,4527.5,0.2031]
[1758277867409,1.52047039,4527.6,4527.5,0.60046]
[1758277867609,1.28689162,4527.6,4527.5,0.89186]
[1758277869114,1.52048706,4527.6,4527.5,0.89186]
[1758277869306,1.52048706,4527.6,4527.5,0.4945]
[1758277869613,1.52048706,4527.6,4527.5,0.89186]
[1758277870116,0.7376,4527.4,4527.3,0.45747]
[1758277870308,1.52054165,4527.4,4527.3,0.0601]
[1758277870509,1.52054165,4527.4,4527.3,0.0381]
[1758277872009,0.8569,4526.5,4526.4,0.4945]
[1758277872205,1.40619162,4526.5,4526.4,0.4945]
[1758277872409,0.7376,4526.5,4526.4,0.6963]
[1758277872807,0.2091,4526.8,4526.7,0.6963]
[1758277873010,0.4188,4527.1,4527.0,0.4049]
[1758277873209,0.4188,4527.1,4527.0,0.6963]
[1758277873210,0.97105898,4527.1,4527.0,0.6963]
[1758277873413,1.51815274,4527.1,4527.0,0.6963]
[1758277875812,1.51815274,4527.1,4527.0,0.8248]
[1758277876806,1.51815274,4527.1,4527.0,0.6963]
[1758277877514,0.98965274,4527.1,4527.0,0.8248]
[1758277877714,0.54709376,4527.1,4527.0,0.8248]
[1758277877914,0.2091,4527.8,4527.7,0.80223]
[1758277878216,1.07459574,4527.8,4527.7,0.80223]
[1758277878412,1.51758873,4527.8,4527.7,1.09363]
[1758277880620,0.77998873,4527.8,4527.7,1.09363]
[1758277880824,0.5279,4528.2,4528.1,1.0936]
[1758277881121,0.78071916,4528.2,4528.1,1.0936]
[1758277881323,0.98981916,4528.2,4528.1,1.0936]
[1758277881616,1.51831916,4528.2,4528.1,1.0936]
[1758277882721,1.51831916,4528.2,4528.1,0.6963]
[1758277883414,1.51831916,4528.2,4528.0,0.39731]
[1758277883607,1.51831916,4528.1,4528.0,0.39731]
[1758277884219,1.51831916,4528.1,4528.0,0.60041]
[1758277884422,1.51831916,4528.1,4528.0,0.89181]
[1758277888626,1.51831916,4528.1,4528.0,0.2031]
[1758277888818,0.5299,4528.0,4527.9,0.39732]
[1758277889015,1.61791916,4528.0,4527.9,0.39732]
[1758277889222,1.61791916,4528.0,4527.9,0.208]
[1758277889426,0.7117,4527.9,4527.8,0.39733]
[1758277889724,0.7117,4527.9,4527.7,0.022]
[1758277889725,1.49241916,4527.9,4527.7,0.022]
[1758277890022,1.49241916,4527.8,4527.7,0.022]
[1758277890424,5.18511916,4527.8,4526.6,0.3012]
[1758277890725,0.7117,4526.7,4526.6,0.5092]
[1758277890922,1.25890375,4526.7,4526.6,0.5092]
[1758277892425,1.25890375,4526.7,4526.6,0.7056]
[1758277892927,0.7117,4527.3,4527.2,0.4044]
[1758277893127,1.49243928,4527.3,4527.2,0.7056]
[1758277893328,1.49243928,4527.3,4527.2,0.5092]
[1758277893827,1.49243928,4527.3,4527.2,0.7056]
[1758277894123,1.18513928,4527.3,4526.5,0.1188]
[1758277894423,0.5011,4526.7,4526.6,1.10303]
[1758277894824,1.25908538,4526.7,4526.6,1.10303]
[1758277895422,0.7117,4526.7,4526.6,1.10303]
[1758277896639,0.1255,4527.5,4527.1,0.60538]
[1758277896640,0.4044,4527.2,4527.1,0.60538]
[1758277896933,1.18493086,4527.2,4527.1,1.10298]
[1758277897134,1.49223086,4527.2,4527.1,1.10298]
[1758277900138,0.1255,4528.0,4527.5,0.39735]
[1758277900342,0.7117,4527.6,4527.5,1.10295]
[1758277900538,0.974019,4527.6,4527.5,1.22175]
[1758277901646,0.1193,4528.5,4528.3,0.208]
[1758277901647,0.7117,4528.4,4528.3,0.208]
[1758277901846,1.49021167,4528.4,4528.3,0.5092]
[1758277902148,1.49021167,4528.4,4528.3,0.208]
[1758277902646,1.18291167,4528.4,4528.0,0.69851]
[1758277902945,0.7117,4528.1,4528.0,0.90651]
[1758277903140,1.49021167,4528.1,4528.0,0.90651]
[1758277905243,1.49021167,4528.1,4528.0,0.208]
[1758277905449,0.7117,4527.8,4527.7,0.5092]
[1758277905647,1.25698398,4527.8,4527.7,0.5092]
[1758277905850,1.25698398,4527.8,4527.7,0.90654]
[1758277906349,1.49027496,4527.8,4527.7,1.10294]
[1758277911753,1.25698398,4527.8,4527.7,1.10294]
[1758277911955,1.49031666,4527.8,4527.7,1.10294]
[1758277915352,1.49031666,4527.8,4527.7,0.39734]
[1758277916656,1.49031666,4527.8,4527.7,0.61064]
[1758277917055,1.49031666,4527.8,4527.7,0.93024]
[1758277917653,1.49031666,4527.8,4527.7,0.61064]
[1758277920458,1.49031666,4527.8,4527.7,0.91194]
[1758277920650,1.49031666,4527.8,4527.7,1.11914]
[1758277921155,1.49091849,4527.8,4527.7,1.11914]
[1758277924259,1.49091849,4527.8,4527.7,0.39734]
[1758277924651,1.49091849,4527.8,4527.7,0.90164]
[1758277926458,1.49091849,4527.8,4527.7,1.10884]
[1758277927753,1.49091849,4527.8,4527.7,0.90164]
[1758277927955,0.4132,4527.2,4527.1,0.022]
[1758277928160,0.94333268,4527.2,4527.1,0.022]
[1758277928459,0.71,4526.8,4526.7,0.90173]
[1758277928661,1.49044515,4526.8,4526.7,0.90173]
[1758277930459,0.78044515,4526.8,4526.7,1.10893]
[1758277930754,0.1255,4528.0,4526.5,0.1237]
[1758277930755,0.5047,4527.6,4527.5,0.80756]
[1758277930958,0.5047,4527.6,4527.5,1.10886]
[1758277931155,1.25700922,4527.6,4527.5,1.10886]
[1758277932965,1.25700922,4527.6,4527.5,1.23256]
[1758277933765,1.25700922,4527.6,4527.5,1.10886]
[1758277937466,1.25700922,4527.6,4527.5,0.90166]
[1758277938460,1.25700922,4527.6,4527.5,1.10886]
[1758277939562,1.25700922,4527.6,4527.5,0.5043]
[1758277939862,0.8347,4527.5,4526.9,0.3233]
[1758277940059,0.71,4527.0,4526.9,1.13091]
[1758277940260,1.25700922,4527.0,4526.9,1.13091]
[1758277940460,1.25700922,4527.0,4526.9,1.10891]
[1758277943569,1.61225872,4527.0,4526.9,0.60041]
[1758277944469,1.61225872,4527.0,4526.9,0.90171]
[1758277944666,1.48755872,4527.0,4526.9,1.10891]
[1758277944866,1.25700922,4527.0,4526.9,1.10891]
[1758277947072,0.71,4527.0,4526.9,1.10891]